[Event "*** SCC Grand Prix: Titled Tuesday Blitz"]
[Site "Chess.com"]
[Date "2020.08.11"]
[Round "1"]
[White "CroissantNeuf"]
[Black "FairChess_on_YouTube"]
[Result "0-1"]
[WhiteElo "2447"]
[BlackElo "2987"]
[TimeControl "180+1"]
[EndTime "10:03:05 PDT"]
[Termination "FairChess_on_YouTube won by resignation"]

1. e4 {[%clk 0:03:00.9]} 1... g6 {[%clk 0:02:59.8]} 2. d4 {[%clk 0:03:00.4]}
2... Bg7 {[%clk 0:03:00.3]} 3. Nf3 {[%clk 0:03:01]} 3... d6 {[%clk 0:02:58.9]}
4. Bd3 {[%clk 0:03:00.9]} 4... Nc6 {[%clk 0:02:53.3]} 5. c3 {[%clk 0:03:00.1]}
5... e5 {[%clk 0:02:53.2]} 6. h3 {[%clk 0:03:00]} 6... Nf6 {[%clk 0:02:50]} 7.
O-O {[%clk 0:02:58.9]} 7... O-O {[%clk 0:02:50]} 8. Re1 {[%clk 0:02:59.5]} 8...
Re8 {[%clk 0:02:47.3]} 9. d5 {[%clk 0:02:57.6]} 9... Ne7 {[%clk 0:02:47.1]} 10.
c4 {[%clk 0:02:56.1]} 10... Nd7 {[%clk 0:02:47]} 11. Nc3 {[%clk 0:02:53.8]}
11... a5 {[%clk 0:02:47.1]} 12. Be3 {[%clk 0:02:44.4]} 12... f5 {[%clk
0:02:45.9]} 13. Ng5 {[%clk 0:02:41.5]} 13... Nf8 {[%clk 0:02:45.3]} 14. exf5
{[%clk 0:02:39.1]} 14... gxf5 {[%clk 0:02:42]} 15. f4 {[%clk 0:02:38]} 15... h6
{[%clk 0:02:36]} 16. Ne6 {[%clk 0:02:32.1]} 16... Nxe6 {[%clk 0:02:34.8]} 17.
fxe5 {[%clk 0:02:32.8]} 17... dxe5 {[%clk 0:02:25.4]} 18. dxe6 {[%clk
0:02:31.1]} 18... Bxe6 {[%clk 0:02:26.3]} 19. Qe2 {[%clk 0:02:12.3]} 19... Nc6
{[%clk 0:02:14.9]} 20. Rad1 {[%clk 0:02:09.6]} 20... Nd4 {[%clk 0:02:14.6]} 21.
Qh5 {[%clk 0:02:07.8]} 21... Bf7 {[%clk 0:02:06]} 0-1

[Event "*** SCC Grand Prix: Titled Tuesday Blitz"]
[Site "Chess.com"]
[Date "2020.08.11"]
[Round "1"]
[White "pfalcon1949"]
[Black "aa175"]
[Result "0-1"]
[WhiteElo "1967"]
[BlackElo "2474"]
[TimeControl "180+1"]
[EndTime "10:03:22 PDT"]
[Termination "aa175 won by resignation"]

1. d4 {[%clk 0:03:00.9]} 1... e5 {[%clk 0:02:58.2]} 2. c4 {[%clk 0:03:01.8]}
2... exd4 {[%clk 0:02:57.8]} 3. Nf3 {[%clk 0:03:01.7]} 3... Bb4+ {[%clk
0:02:56.9]} 4. Bd2 {[%clk 0:03:00.8]} 4... Bxd2+ {[%clk 0:02:57.8]} 5. Qxd2
{[%clk 0:03:00.6]} 5... c5 {[%clk 0:02:58.4]} 6. e3 {[%clk 0:03:00.3]} 6... dxe3
{[%clk 0:02:59.3]} 7. Qxe3+ {[%clk 0:03:00.2]} 7... Qe7 {[%clk 0:02:59.8]} 8.
Qxe7+ {[%clk 0:02:57.5]} 8... Nxe7 {[%clk 0:03:00.7]} 9. Nc3 {[%clk 0:02:57.2]}
9... O-O {[%clk 0:02:57.1]} 10. O-O-O {[%clk 0:02:57.7]} 10... Nbc6 {[%clk
0:02:48]} 11. Bd3 {[%clk 0:02:56.5]} 11... b6 {[%clk 0:02:45.2]} 12. Rhe1 {[%clk
0:02:56.9]} 12... Bb7 {[%clk 0:02:42.2]} 13. a3 {[%clk 0:02:57.4]} 13... Rfe8
{[%clk 0:02:36.9]} 14. b3 {[%clk 0:02:47.8]} 14... Ng6 {[%clk 0:02:37.2]} 15.
Kb2 {[%clk 0:02:47.2]} 15... Nf4 {[%clk 0:02:36.4]} 16. Rxe8+ {[%clk 0:02:34]}
16... Rxe8 {[%clk 0:02:35.6]} 17. Bf1 {[%clk 0:02:33.2]} 17... Nb8 {[%clk
0:02:19.5]} 18. Nd5 {[%clk 0:02:23.1]} 18... Bxd5 {[%clk 0:02:12.2]} 19. cxd5
{[%clk 0:02:24]} 19... d6 {[%clk 0:02:13]} 20. Bb5 {[%clk 0:02:17.8]} 20... Re7
{[%clk 0:02:09.5]} 21. Rd2 {[%clk 0:02:15.1]} 21... a6 {[%clk 0:02:06.4]} 22.
Bf1 {[%clk 0:02:12.6]} 22... Nd7 {[%clk 0:02:05.6]} 23. g3 {[%clk 0:02:13.1]}
23... Ng6 {[%clk 0:02:04.4]} 24. Bh3 {[%clk 0:02:11.8]} 24... Nf6 {[%clk
0:02:01.7]} 25. Bf5 {[%clk 0:02:08.7]} 25... Ne5 {[%clk 0:02:00.1]} 26. Bc8
{[%clk 0:01:41.4]} 26... Nxf3 {[%clk 0:01:59.4]} 0-1

[Event "*** SCC Grand Prix: Titled Tuesday Blitz"]
[Site "Chess.com"]
[Date "2020.08.11"]
[Round "1"]
[White "chargemax23"]
[Black "UKR_Master"]
[Result "1-0"]
[WhiteElo "2646"]
[BlackElo "2300"]
[TimeControl "180+1"]
[EndTime "10:03:27 PDT"]
[Termination "chargemax23 won by resignation"]

1. c4 {[%clk 0:03:00.9]} 1... Nf6 {[%clk 0:02:57.9]} 2. Nc3 {[%clk 0:03:00.2]}
2... c5 {[%clk 0:02:58.1]} 3. Nf3 {[%clk 0:02:59.5]} 3... b6 {[%clk 0:02:57.5]}
4. e4 {[%clk 0:02:58.6]} 4... d6 {[%clk 0:02:55.8]} 5. d4 {[%clk 0:02:58.2]}
5... cxd4 {[%clk 0:02:56]} 6. Nxd4 {[%clk 0:02:57.7]} 6... Bb7 {[%clk
0:02:56.6]} 7. f3 {[%clk 0:02:57.8]} 7... g6 {[%clk 0:02:56.7]} 8. Be3 {[%clk
0:02:57.2]} 8... Bg7 {[%clk 0:02:56.9]} 9. Qd2 {[%clk 0:02:56.8]} 9... Nbd7
{[%clk 0:02:56.6]} 10. Be2 {[%clk 0:02:56]} 10... Rc8 {[%clk 0:02:56.8]} 11. O-O
{[%clk 0:02:55.3]} 11... Ne5 {[%clk 0:02:56.9]} 12. b3 {[%clk 0:02:54.9]} 12...
Nc6 {[%clk 0:02:54.7]} 13. Rfd1 {[%clk 0:02:51.5]} 13... O-O {[%clk 0:02:51.5]}
14. Bf1 {[%clk 0:02:50.8]} 14... Nb8 {[%clk 0:02:37.1]} 15. Rac1 {[%clk
0:02:49.1]} 15... Nbd7 {[%clk 0:02:36.4]} 16. Bh6 {[%clk 0:02:48.3]} 16... Re8
{[%clk 0:02:18.5]} 17. Bxg7 {[%clk 0:02:38.4]} 17... Kxg7 {[%clk 0:02:19.4]} 18.
Qg5 {[%clk 0:02:36.8]} 18... Qc7 {[%clk 0:02:12.6]} 19. Nd5 {[%clk 0:02:30.1]}
19... Qc5 {[%clk 0:02:04.6]} 20. b4 {[%clk 0:02:28.5]} 20... h6 {[%clk
0:01:45.6]} 21. Qxf6+ {[%clk 0:02:19.5]} 21... exf6 {[%clk 0:01:38.4]} 22. bxc5
{[%clk 0:02:19.4]} 22... dxc5 {[%clk 0:01:36.4]} 23. Nb5 {[%clk 0:02:19.1]}
23... Re6 {[%clk 0:01:33.7]} 24. Nxa7 {[%clk 0:02:16.1]} 24... Ra8 {[%clk
0:01:31]} 25. Nc7 {[%clk 0:02:12.1]} 1-0

[Event "*** SCC Grand Prix: Titled Tuesday Blitz"]
[Site "Chess.com"]
[Date "2020.08.11"]
[Round "1"]
[White "MF1966Idrisov"]
[Black "crescentmoon2411"]
[Result "0-1"]
[WhiteElo "2387"]
[BlackElo "2765"]
[TimeControl "180+1"]
[EndTime "10:03:29 PDT"]
[Termination "crescentmoon2411 won by resignation"]

1. Nf3 {[%clk 0:03:00.9]} 1... Nf6 {[%clk 0:02:58.6]} 2. b3 {[%clk 0:03:00.8]}
2... g6 {[%clk 0:02:57.3]} 3. Bb2 {[%clk 0:03:00.3]} 3... Bg7 {[%clk 0:02:57.8]}
4. c4 {[%clk 0:03:00.2]} 4... O-O {[%clk 0:02:57]} 5. g3 {[%clk 0:03:00.2]} 5...
d6 {[%clk 0:02:54.3]} 6. d4 {[%clk 0:02:59.4]} 6... c5 {[%clk 0:02:50.4]} 7. Bg2
{[%clk 0:02:58.8]} 7... Nc6 {[%clk 0:02:48.3]} 8. O-O {[%clk 0:02:57.3]} 8...
Bg4 {[%clk 0:02:43.3]} 9. d5 {[%clk 0:02:51.7]} 9... Bxf3 {[%clk 0:02:35.5]} 10.
exf3 {[%clk 0:02:49.2]} 10... Nd4 {[%clk 0:02:29.1]} 11. Bxd4 {[%clk 0:02:45.2]}
11... cxd4 {[%clk 0:02:30]} 12. Nd2 {[%clk 0:02:40.1]} 12... a5 {[%clk
0:02:24.3]} 13. Ne4 {[%clk 0:02:34.9]} 13... Nxe4 {[%clk 0:02:23.3]} 14. fxe4
{[%clk 0:02:34.9]} 14... Qb6 {[%clk 0:02:16.1]} 15. Qd3 {[%clk 0:02:33.6]} 15...
a4 {[%clk 0:02:09.8]} 16. Rab1 {[%clk 0:02:33]} 16... axb3 {[%clk 0:02:06]} 17.
Rxb3 {[%clk 0:02:31.3]} 17... Qc7 {[%clk 0:02:05.7]} 18. Rfb1 {[%clk 0:02:28.9]}
18... Rfb8 {[%clk 0:02:00.5]} 19. a3 {[%clk 0:02:27.7]} 19... b6 {[%clk
0:01:51.3]} 20. h4 {[%clk 0:02:21.2]} 20... h5 {[%clk 0:01:46.9]} 21. Bf3 {[%clk
0:02:19.9]} 21... Ra4 {[%clk 0:01:41.2]} 22. Rb5 {[%clk 0:02:13.2]} 22... Rxc4
{[%clk 0:01:34.1]} 23. Rxb6 {[%clk 0:02:12.8]} 23... Rxb6 {[%clk 0:01:33.7]} 24.
Rxb6 {[%clk 0:02:11.6]} 24... Rc1+ {[%clk 0:01:33.8]} 0-1

[Event "*** SCC Grand Prix: Titled Tuesday Blitz"]
[Site "Chess.com"]
[Date "2020.08.11"]
[Round "1"]
[White "wild_cat99"]
[Black "ItsCheckM8Mate"]
[Result "0-1"]
[WhiteElo "2634"]
[BlackElo "2320"]
[TimeControl "180+1"]
[EndTime "10:03:43 PDT"]
[Termination "ItsCheckM8Mate won by resignation"]

1. Nf3 {[%clk 0:03:00.9]} 1... d5 {[%clk 0:02:56.5]} 2. e3 {[%clk 0:02:58.9]}
2... g6 {[%clk 0:02:53]} 3. c4 {[%clk 0:02:59]} 3... Nf6 {[%clk 0:02:51.7]} 4.
Nc3 {[%clk 0:02:56.6]} 4... Bg7 {[%clk 0:02:51.1]} 5. b3 {[%clk 0:02:55.4]} 5...
O-O {[%clk 0:02:32.5]} 6. Bb2 {[%clk 0:02:54]} 6... c5 {[%clk 0:02:32.7]} 7. d4
{[%clk 0:02:37.8]} 7... cxd4 {[%clk 0:02:29.2]} 8. exd4 {[%clk 0:02:38.2]} 8...
Nc6 {[%clk 0:02:27.6]} 9. c5 {[%clk 0:02:34.1]} 9... e5 {[%clk 0:02:04.9]} 10.
Bc4 {[%clk 0:02:35]} 10... dxc4 {[%clk 0:02:02.9]} 11. bxc4 {[%clk 0:02:35.4]}
11... exd4 {[%clk 0:02:02.2]} 12. Nb5 {[%clk 0:02:34.6]} 12... Re8+ {[%clk
0:02:01.6]} 13. Kf1 {[%clk 0:02:32.7]} 13... Ne4 {[%clk 0:01:57.3]} 14. Nbxd4
{[%clk 0:02:07.1]} 14... Nxd4 {[%clk 0:01:55.6]} 15. Nxd4 {[%clk 0:02:08]} 15...
Nxc5 {[%clk 0:01:50.2]} 16. h4 {[%clk 0:01:44.8]} 16... Be6 {[%clk 0:01:47.1]}
17. Nxe6 {[%clk 0:01:31.8]} 17... Qxd1+ {[%clk 0:01:45.1]} 18. Rxd1 {[%clk
0:01:31.2]} 18... Nxe6 {[%clk 0:01:44.5]} 0-1

[Event "*** SCC Grand Prix: Titled Tuesday Blitz"]
[Site "Chess.com"]
[Date "2020.08.11"]
[Round "1"]
[White "Makswolf200817"]
[Black "amintabatabaei"]
[Result "0-1"]
[WhiteElo "2450"]
[BlackElo "3031"]
[TimeControl "180+1"]
[EndTime "10:03:44 PDT"]
[Termination "amintabatabaei won by resignation"]

1. Nf3 {[%clk 0:03:00.2]} 1... c5 {[%clk 0:02:59.9]} 2. c4 {[%clk 0:02:57.6]}
2... Nf6 {[%clk 0:03:00.1]} 3. Nc3 {[%clk 0:02:56.8]} 3... d5 {[%clk 0:03:00.5]}
4. cxd5 {[%clk 0:02:56.1]} 4... Nxd5 {[%clk 0:03:01.4]} 5. e3 {[%clk 0:02:56.6]}
5... e6 {[%clk 0:03:01]} 6. d4 {[%clk 0:02:45]} 6... cxd4 {[%clk 0:03:01.2]} 7.
exd4 {[%clk 0:02:45]} 7... Bb4 {[%clk 0:02:56.1]} 8. Qc2 {[%clk 0:02:33.1]} 8...
Nc6 {[%clk 0:02:55.7]} 9. Bd3 {[%clk 0:02:31.5]} 9... Ba5 {[%clk 0:02:55.3]} 10.
a3 {[%clk 0:02:30.1]} 10... Nxc3 {[%clk 0:02:55.7]} 11. bxc3 {[%clk 0:02:29.6]}
11... Nxd4 {[%clk 0:02:56.3]} 12. Nxd4 {[%clk 0:02:09.2]} 12... Qxd4 {[%clk
0:02:57.2]} 13. Bd2 {[%clk 0:02:04.2]} 13... Qe5+ {[%clk 0:02:54.8]} 14. Be2
{[%clk 0:01:59.9]} 14... O-O {[%clk 0:02:53.6]} 15. Rb1 {[%clk 0:01:53.1]} 15...
Bd7 {[%clk 0:02:51.9]} 16. f4 {[%clk 0:01:41.5]} 16... Qc5 {[%clk 0:02:46.6]}
17. a4 {[%clk 0:01:23.1]} 17... Bc6 {[%clk 0:02:44.6]} 18. Bd3 {[%clk
0:01:17.3]} 18... h6 {[%clk 0:02:33.4]} 19. h4 {[%clk 0:01:12.2]} 19... Rfd8
{[%clk 0:02:32.8]} 20. h5 {[%clk 0:01:04.8]} 20... Rd6 {[%clk 0:02:24.7]} 21.
Rh3 {[%clk 0:00:58.4]} 21... Qg1+ {[%clk 0:02:21.8]} 0-1

[Event "*** SCC Grand Prix: Titled Tuesday Blitz"]
[Site "Chess.com"]
[Date "2020.08.11"]
[Round "1"]
[White "KuzubovYuriy"]
[Black "lelajavakhishvili"]
[Result "1-0"]
[WhiteElo "2828"]
[BlackElo "2406"]
[TimeControl "180+1"]
[EndTime "10:03:58 PDT"]
[Termination "KuzubovYuriy won by resignation"]

1. d4 {[%clk 0:03:00.9]} 1... Nf6 {[%clk 0:02:59.7]} 2. c4 {[%clk 0:03:00.6]}
2... e6 {[%clk 0:03:00]} 3. Nf3 {[%clk 0:03:00.2]} 3... b6 {[%clk 0:03:00]} 4.
g3 {[%clk 0:02:59.6]} 4... Bb7 {[%clk 0:03:00.1]} 5. Bg2 {[%clk 0:02:59.2]} 5...
g6 {[%clk 0:03:00.1]} 6. O-O {[%clk 0:02:33.3]} 6... Bg7 {[%clk 0:02:59.7]} 7.
Qc2 {[%clk 0:02:33.1]} 7... O-O {[%clk 0:02:58.3]} 8. Nc3 {[%clk 0:02:31.2]}
8... d5 {[%clk 0:02:57]} 9. cxd5 {[%clk 0:02:19.5]} 9... exd5 {[%clk 0:02:56.8]}
10. Bf4 {[%clk 0:02:13.9]} 10... Na6 {[%clk 0:02:55.1]} 11. Rac1 {[%clk
0:02:12.5]} 11... Re8 {[%clk 0:02:53.5]} 12. Rfd1 {[%clk 0:02:12.2]} 12... c6
{[%clk 0:02:29.9]} 13. Ne5 {[%clk 0:02:05.9]} 13... Nh5 {[%clk 0:02:24.9]} 14.
Bd2 {[%clk 0:01:48.4]} 14... c5 {[%clk 0:02:13.3]} 15. e3 {[%clk 0:01:33.4]}
15... Rc8 {[%clk 0:01:58.2]} 16. Qa4 {[%clk 0:01:20.9]} 16... cxd4 {[%clk
0:01:48.2]} 17. exd4 {[%clk 0:01:20.1]} 17... Rc4 {[%clk 0:01:48.3]} 18. Nxc4
{[%clk 0:01:13.2]} 1-0

[Event "*** SCC Grand Prix: Titled Tuesday Blitz"]
[Site "Chess.com"]
[Date "2020.08.11"]
[Round "1"]
[White "ChessicallyInclined"]
[Black "szefru"]
[Result "1-0"]
[WhiteElo "2504"]
[BlackElo "2110"]
[TimeControl "180+1"]
[EndTime "10:03:59 PDT"]
[Termination "ChessicallyInclined won by resignation"]

1. d4 {[%clk 0:02:57.2]} 1... f5 {[%clk 0:02:53.6]} 2. Bg5 {[%clk 0:02:50.3]}
2... Nf6 {[%clk 0:02:53]} 3. Bxf6 {[%clk 0:02:49.7]} 3... exf6 {[%clk
0:02:53.1]} 4. e3 {[%clk 0:02:49.7]} 4... Nc6 {[%clk 0:02:52.8]} 5. c4 {[%clk
0:02:48.9]} 5... d5 {[%clk 0:02:52.4]} 6. cxd5 {[%clk 0:02:48.9]} 6... Qxd5
{[%clk 0:02:53.3]} 7. Nc3 {[%clk 0:02:48.6]} 7... Bb4 {[%clk 0:02:53]} 8. Nh3
{[%clk 0:02:45.9]} 8... O-O {[%clk 0:02:51.9]} 9. Nf4 {[%clk 0:02:45.9]} 9...
Qf7 {[%clk 0:02:48.6]} 10. h4 {[%clk 0:02:43.9]} 10... g5 {[%clk 0:02:44.1]} 11.
hxg5 {[%clk 0:02:41.8]} 11... fxg5 {[%clk 0:02:42.4]} 12. Nh5 {[%clk 0:02:42.3]}
12... Be6 {[%clk 0:02:37.9]} 13. a3 {[%clk 0:02:38]} 13... Bxc3+ {[%clk
0:02:37.1]} 14. bxc3 {[%clk 0:02:38.9]} 14... Bc4 {[%clk 0:02:32.7]} 15. Rb1
{[%clk 0:02:31.9]} 15... Bxf1 {[%clk 0:02:28.6]} 16. Kxf1 {[%clk 0:02:32.8]}
16... Qc4+ {[%clk 0:02:26.9]} 17. Kg1 {[%clk 0:02:29.4]} 17... b6 {[%clk
0:02:17.7]} 18. Qd2 {[%clk 0:02:22.9]} 18... Rae8 {[%clk 0:02:14.2]} 19. e4
{[%clk 0:02:16.5]} 19... f4 {[%clk 0:02:10.6]} 20. e5 {[%clk 0:02:13.9]} 20...
Qd5 {[%clk 0:01:56.3]} 21. Qc2 {[%clk 0:02:10.6]} 21... Qf7 {[%clk 0:01:15.5]}
22. Nf6+ {[%clk 0:01:55.8]} 1-0

[Event "*** SCC Grand Prix: Titled Tuesday Blitz"]
[Site "Chess.com"]
[Date "2020.08.11"]
[Round "1"]
[White "Carnivoras"]
[Black "140mariam"]
[Result "1-0"]
[WhiteElo "2651"]
[BlackElo "2305"]
[TimeControl "180+1"]
[EndTime "10:04:03 PDT"]
[Termination "Carnivoras won by resignation"]

1. d4 {[%clk 0:03:00.9]} 1... e6 {[%clk 0:01:31]} 2. c4 {[%clk 0:02:58.8]} 2...
d5 {[%clk 0:01:31.9]} 3. Nc3 {[%clk 0:02:58.4]} 3... Be7 {[%clk 0:01:32.5]} 4.
Nf3 {[%clk 0:02:58.3]} 4... Nf6 {[%clk 0:01:33.4]} 5. cxd5 {[%clk 0:02:58.3]}
5... exd5 {[%clk 0:01:34.3]} 6. Bg5 {[%clk 0:02:59]} 6... c6 {[%clk 0:01:34.8]}
7. Qc2 {[%clk 0:02:58.6]} 7... Bg4 {[%clk 0:01:34.9]} 8. Ne5 {[%clk 0:02:56.2]}
8... Bh5 {[%clk 0:01:34.1]} 9. e3 {[%clk 0:02:55.9]} 9... Bg6 {[%clk 0:01:33.3]}
10. Nxg6 {[%clk 0:02:55.4]} 10... hxg6 {[%clk 0:01:34.2]} 11. Bd3 {[%clk
0:02:55.6]} 11... Nbd7 {[%clk 0:01:34.9]} 12. a3 {[%clk 0:02:50.5]} 12... Qc7
{[%clk 0:01:24.1]} 13. Rc1 {[%clk 0:02:46.9]} 13... Rxh2 {[%clk 0:01:16.4]} 14.
Ke2 {[%clk 0:02:35.9]} 14... Rxh1 {[%clk 0:01:16]} 15. Rxh1 {[%clk 0:02:35.1]}
15... O-O-O {[%clk 0:01:16.2]} 16. b4 {[%clk 0:02:33.8]} 16... Re8 {[%clk
0:01:12.3]} 17. Rc1 {[%clk 0:02:28.3]} 17... Kb8 {[%clk 0:01:08.1]} 18. Nb5
{[%clk 0:02:23.1]} 18... Qb6 {[%clk 0:01:08.6]} 19. Bf4+ {[%clk 0:02:23.2]}
19... Ka8 {[%clk 0:00:51.8]} 20. Nc7+ {[%clk 0:02:21.8]} 1-0

[Event "*** SCC Grand Prix: Titled Tuesday Blitz"]
[Site "Chess.com"]
[Date "2020.08.11"]
[Round "1"]
[White "dpopadic"]
[Black "SantoBlue"]
[Result "0-1"]
[WhiteElo "2422"]
[BlackElo "2873"]
[TimeControl "180+1"]
[EndTime "10:04:15 PDT"]
[Termination "SantoBlue won by resignation"]

1. e4 {[%clk 0:03:00.9]} 1... d6 {[%clk 0:02:59.1]} 2. Nc3 {[%clk 0:02:59.7]}
2... Nf6 {[%clk 0:02:55.8]} 3. f4 {[%clk 0:02:59.4]} 3... c5 {[%clk 0:02:51.2]}
4. Nf3 {[%clk 0:02:59]} 4... g6 {[%clk 0:02:48.3]} 5. Bb5+ {[%clk 0:02:57.6]}
5... Bd7 {[%clk 0:02:47.2]} 6. Bc4 {[%clk 0:02:57.4]} 6... Bg7 {[%clk
0:02:46.6]} 7. d3 {[%clk 0:02:57.4]} 7... O-O {[%clk 0:02:44]} 8. O-O {[%clk
0:02:57.3]} 8... Nc6 {[%clk 0:02:42.1]} 9. h3 {[%clk 0:02:57.4]} 9... Na5 {[%clk
0:02:42.2]} 10. Bb3 {[%clk 0:02:56.5]} 10... Nxb3 {[%clk 0:02:42.1]} 11. axb3
{[%clk 0:02:56.7]} 11... Bc6 {[%clk 0:02:41.8]} 12. Qe1 {[%clk 0:02:56.2]} 12...
d5 {[%clk 0:02:36.8]} 13. e5 {[%clk 0:02:54.8]} 13... Ne8 {[%clk 0:02:34]} 14.
e6 {[%clk 0:02:51.3]} 14... f6 {[%clk 0:02:32.4]} 15. Qh4 {[%clk 0:02:38.1]}
15... Nd6 {[%clk 0:02:30.3]} 16. g4 {[%clk 0:02:27.8]} 16... d4 {[%clk
0:02:29.5]} 17. Na4 {[%clk 0:02:15.4]} 17... b6 {[%clk 0:02:27]} 18. Bd2 {[%clk
0:02:12.9]} 18... Qc8 {[%clk 0:02:23.6]} 19. Rae1 {[%clk 0:02:08.7]} 19... Bxf3
{[%clk 0:02:23.5]} 20. Rxf3 {[%clk 0:02:06.6]} 20... b5 {[%clk 0:02:24.4]} 21.
f5 {[%clk 0:01:57.1]} 21... bxa4 {[%clk 0:02:23.3]} 22. bxa4 {[%clk 0:01:56.5]}
22... Qb7 {[%clk 0:02:20.5]} 23. Rf2 {[%clk 0:01:45.2]} 23... Qxb2 {[%clk
0:02:13.2]} 24. Bh6 {[%clk 0:01:42.1]} 24... g5 {[%clk 0:02:10.5]} 25. Qh5
{[%clk 0:01:42.1]} 25... Qb4 {[%clk 0:02:04]} 26. Ref1 {[%clk 0:01:38.8]} 26...
Qxa4 {[%clk 0:02:04.2]} 27. h4 {[%clk 0:01:38.5]} 27... Qe8 {[%clk 0:02:04.3]}
28. Qxe8 {[%clk 0:01:35.6]} 28... Rfxe8 {[%clk 0:01:59.5]} 29. hxg5 {[%clk
0:01:35.6]} 29... Bxh6 {[%clk 0:01:57.8]} 30. gxh6 {[%clk 0:01:35]} 30... Kh8
{[%clk 0:01:58.7]} 31. Kh2 {[%clk 0:01:34]} 31... a5 {[%clk 0:01:56.9]} 32. Ra1
{[%clk 0:01:32.8]} 32... a4 {[%clk 0:01:57]} 33. Ra2 {[%clk 0:01:28.7]} 33... a3
{[%clk 0:01:56.2]} 34. Rf1 {[%clk 0:01:28.8]} 34... Nb5 {[%clk 0:01:55.7]} 35.
Rfa1 {[%clk 0:01:27.5]} 35... Ra7 {[%clk 0:01:54.5]} 0-1

[Event "*** SCC Grand Prix: Titled Tuesday Blitz"]
[Site "Chess.com"]
[Date "2020.08.11"]
[Round "1"]
[White "Cambek64"]
[Black "Fy_Rakotomaharo"]
[Result "0-1"]
[WhiteElo "2319"]
[BlackElo "2668"]
[TimeControl "180+1"]
[EndTime "10:04:19 PDT"]
[Termination "Fy_Rakotomaharo won by resignation"]

1. e4 {[%clk 0:03:00.9]} 1... c5 {[%clk 0:02:59.8]} 2. Nc3 {[%clk 0:03:00.1]}
2... a6 {[%clk 0:02:59.6]} 3. f4 {[%clk 0:02:58.2]} 3... b5 {[%clk 0:02:59.7]}
4. Nf3 {[%clk 0:02:57.7]} 4... Bb7 {[%clk 0:03:00.3]} 5. d3 {[%clk 0:02:57.6]}
5... g6 {[%clk 0:02:58.3]} 6. g4 {[%clk 0:02:52.4]} 6... Bg7 {[%clk 0:02:45.7]}
7. Bg2 {[%clk 0:02:52.4]} 7... d6 {[%clk 0:02:39.6]} 8. O-O {[%clk 0:02:52]}
8... Nd7 {[%clk 0:02:32.6]} 9. f5 {[%clk 0:02:50.5]} 9... Ne5 {[%clk 0:02:28.9]}
10. Bf4 {[%clk 0:02:29.7]} 10... Nxg4 {[%clk 0:02:22]} 11. fxg6 {[%clk
0:02:08.8]} 11... hxg6 {[%clk 0:02:21.7]} 12. Ng5 {[%clk 0:01:41.3]} 12... N8f6
{[%clk 0:02:16.3]} 13. e5 {[%clk 0:01:29.4]} 13... dxe5 {[%clk 0:02:16.3]} 14.
Bxb7 {[%clk 0:01:28.4]} 14... Qd4+ {[%clk 0:01:59.6]} 15. Kh1 {[%clk 0:01:27.6]}
15... exf4 {[%clk 0:01:58.2]} 16. Nf3 {[%clk 0:01:26.2]} 16... Qd8 {[%clk
0:01:41.7]} 17. Bc6+ {[%clk 0:01:17.2]} 17... Kf8 {[%clk 0:01:40.9]} 18. Bxa8
{[%clk 0:01:12.3]} 18... Qxa8 {[%clk 0:01:40.9]} 19. Qe2 {[%clk 0:01:12.4]}
19... Rxh2+ {[%clk 0:01:37.6]} 20. Qxh2 {[%clk 0:01:12.1]} 20... Nxh2 {[%clk
0:01:38.1]} 21. Kxh2 {[%clk 0:01:12.3]} 21... Ng4+ {[%clk 0:01:38.7]} 0-1

[Event "*** SCC Grand Prix: Titled Tuesday Blitz"]
[Site "Chess.com"]
[Date "2020.08.11"]
[Round "1"]
[White "Nastya_Rakhmangulova"]
[Black "bascheyaro"]
[Result "0-1"]
[WhiteElo "2349"]
[BlackElo "2701"]
[TimeControl "180+1"]
[EndTime "10:04:23 PDT"]
[Termination "bascheyaro won by resignation"]

1. e4 {[%clk 0:02:34.7]} 1... e6 {[%clk 0:02:48.9]} 2. d3 {[%clk 0:02:34.1]}
2... d5 {[%clk 0:02:48.3]} 3. Nd2 {[%clk 0:02:34.3]} 3... c5 {[%clk 0:02:46.9]}
4. Ngf3 {[%clk 0:02:33.8]} 4... Nc6 {[%clk 0:02:47.2]} 5. g3 {[%clk 0:02:31.7]}
5... Nf6 {[%clk 0:02:47.2]} 6. Bg2 {[%clk 0:02:31.8]} 6... g6 {[%clk 0:02:47.4]}
7. O-O {[%clk 0:02:31.7]} 7... Bg7 {[%clk 0:02:47.8]} 8. Re1 {[%clk 0:02:31.5]}
8... O-O {[%clk 0:02:47.9]} 9. Qe2 {[%clk 0:02:27.5]} 9... b5 {[%clk 0:02:47.5]}
10. e5 {[%clk 0:02:26.2]} 10... Nd7 {[%clk 0:02:47.2]} 11. Nf1 {[%clk
0:02:23.1]} 11... Ndxe5 {[%clk 0:02:46.9]} 12. Nxe5 {[%clk 0:02:23.1]} 12...
Nxe5 {[%clk 0:02:43.7]} 13. c4 {[%clk 0:02:23.3]} 13... bxc4 {[%clk 0:02:43.5]}
14. dxc4 {[%clk 0:02:24.2]} 14... Nxc4 {[%clk 0:02:43.3]} 15. Ne3 {[%clk
0:02:19.7]} 15... Nxe3 {[%clk 0:02:42.8]} 16. Bxe3 {[%clk 0:02:20.6]} 16... Qb6
{[%clk 0:02:39.8]} 17. Rac1 {[%clk 0:02:17.4]} 17... Ba6 {[%clk 0:02:39.9]} 18.
Bxc5 {[%clk 0:02:04.4]} 18... Bxe2 {[%clk 0:02:38.9]} 19. Bxb6 {[%clk
0:02:04.2]} 19... axb6 {[%clk 0:02:39.3]} 20. Rxe2 {[%clk 0:02:04.7]} 20... Rxa2
{[%clk 0:02:39.7]} 21. Rc6 {[%clk 0:01:52.7]} 21... Rb8 {[%clk 0:02:35.4]} 22.
Rcc2 {[%clk 0:01:43.3]} 22... b5 {[%clk 0:02:35.3]} 23. b4 {[%clk 0:01:39]}
23... Ra4 {[%clk 0:02:34.7]} 24. Bf1 {[%clk 0:01:29.7]} 24... Rxb4 {[%clk
0:02:34.7]} 25. Rc7 {[%clk 0:01:30]} 25... Rb1 {[%clk 0:02:34]} 26. Ra2 {[%clk
0:01:30]} 26... Be5 {[%clk 0:02:31]} 27. Rd7 {[%clk 0:01:28.4]} 27... b4 {[%clk
0:02:29.6]} 28. Raa7 {[%clk 0:01:28.3]} 28... Bd4 {[%clk 0:02:30]} 29. Rac7
{[%clk 0:01:23.8]} 29... Rf8 {[%clk 0:02:30]} 30. Kg2 {[%clk 0:01:22.3]} 30...
Rb2 {[%clk 0:02:29.5]} 31. Bd3 {[%clk 0:01:17.5]} 31... Rxf2+ {[%clk 0:02:29.3]}
32. Kh3 {[%clk 0:01:17.4]} 32... Rd2 {[%clk 0:02:27.5]} 33. Bb1 {[%clk
0:01:16.1]} 33... h5 {[%clk 0:02:24.6]} 34. g4 {[%clk 0:01:04.8]} 34... Be5
{[%clk 0:02:21.8]} 35. Rc2 {[%clk 0:01:00.5]} 35... Rd1 {[%clk 0:02:14.7]} 36.
Ba2 {[%clk 0:00:58.2]} 36... b3 {[%clk 0:02:15]} 0-1